[Event "NJSK 2024 C"]
[Site "Groningen, Netherlands"]
[Date "2024.05.01"]
[Round "6.11"]
[White "Winter, Sven"]
[Black "Van Haaften, Jelle"]
[Result "1-0"]
[TimeControl "90min/40moves + 30min + 30sec/move"]
[WhiteElo "1768"]
[BlackElo "1655"]

1. e4 {[%clk 01:30:18]} {[%emt 00:00:42]} c6 {[%clk 01:30:46]} {[%emt
00:00:05]} 2. c4 {[%clk 01:30:35]} {[%emt 00:00:23]} d5 {[%clk 01:31:11]}
{[%emt 00:00:06]} 3. exd5 {[%clk 01:31:01]} {[%emt 00:00:03]} cxd5 {[%clk
01:31:33]} {[%emt 00:00:07]} 4. cxd5 {[%clk 01:31:27]} {[%emt 00:00:04]} Nf6
{[%clk 01:31:53]} {[%emt 00:00:10]} 5. Nc3 {[%clk 01:31:54]} {[%emt 00:00:04]}
Nxd5 {[%clk 01:32:15]} {[%emt 00:00:08]} 6. Nf3 {[%clk 01:32:20]} {[%emt
00:00:04]} Bg4 {[%clk 01:27:04]} {[%emt 00:05:41]} 7. Bc4 {[%clk 01:31:23]}
{[%emt 00:01:25]} Nb6 {[%clk 01:26:25]} {[%emt 00:01:10]} 8. Bxf7+ {[%clk
01:31:19]} {[%emt 00:00:35]} Kxf7 {[%clk 01:21:43]} {[%emt 00:05:12]} 9. Ne5+
{[%clk 01:26:24]} {[%emt 00:05:24]} Ke8 {[%clk 01:16:47]} {[%emt 00:05:26]} 10.
Qxg4 {[%clk 01:26:39]} {[%emt 00:00:15]} Qd6 {[%clk 01:16:24]} {[%emt
00:00:53]} 11. d4 {[%clk 01:25:53]} {[%emt 00:01:15]} g6 {[%clk 01:11:13]}
{[%emt 00:05:42]} 12. O-O {[%clk 01:24:56]} {[%emt 00:01:26]} Bg7 {[%clk
01:09:19]} {[%emt 00:02:26]} 13. Bf4 {[%clk 01:22:37]} {[%emt 00:02:48]} Qxd4
{[%clk 01:03:45]} {[%emt 00:06:05]} 14. Nb5 {[%clk 01:22:49]} {[%emt 00:00:17]}
Qd8 {[%clk 01:01:08]} {[%emt 00:03:07]} 15. Nxg6 {[%clk 01:20:25]} {[%emt
00:02:54]} hxg6 {[%clk 01:00:36]} {[%emt 00:01:02]} 16. Qxg6+ {[%clk 01:20:47]}
{[%emt 00:00:08]} Kf8 {[%emt 00:00:33]} 17. Nc7 {[%clk 01:20:47]} {[%emt
00:00:01]} 1-0

[Event "NJSK 2024 C"]
[Site "Groningen, Netherlands"]
[Date "2024.05.01"]
[Round "6.12"]
[White "Klein Tuente, Sam"]
[Black "Haque, Nishaaz"]
[Result "1-0"]
[TimeControl "90min/40moves + 30min + 30sec/move"]
[WhiteElo "1732"]
[BlackElo "1803"]

1. e4 {[%clk 01:30:58]} {[%emt 00:00:02]} c5 {[%clk 01:30:55]} {[%emt
00:00:05]} 2. Nf3 {[%clk 01:31:22]} {[%emt 00:00:05]} Nc6 {[%clk 01:31:21]}
{[%emt 00:00:05]} 3. d4 {[%clk 01:31:48]} {[%emt 00:00:05]} cxd4 {[%clk
01:31:47]} {[%emt 00:00:04]} 4. Nxd4 {[%clk 01:32:14]} {[%emt 00:00:03]} e5
{[%clk 01:32:15]} {[%emt 00:00:03]} 5. Nb5 {[%clk 01:32:31]} {[%emt 00:00:12]}
d6 {[%clk 01:32:39]} {[%emt 00:00:06]} 6. c4 {[%clk 01:32:43]} {[%emt
00:00:17]} Be6 {[%clk 01:33:02]} {[%emt 00:00:07]} 7. Bd3 {[%clk 01:31:19]}
{[%emt 00:01:55]} Nf6 {[%clk 01:33:13]} {[%emt 00:00:18]} 8. O-O {[%clk
01:31:16]} {[%emt 00:00:33]} g6 {[%clk 01:31:33]} {[%emt 00:02:10]} 9. N1c3
{[%clk 01:29:26]} {[%emt 00:02:20]} a6 {[%clk 01:31:57]} {[%emt 00:00:07]} 10.
Na3 {[%clk 01:29:51]} {[%emt 00:00:05]} Bg7 {[%clk 01:32:15]} {[%emt 00:00:12]}
11. Nc2 {[%clk 01:28:23]} {[%emt 00:01:58]} O-O {[%clk 01:32:06]} {[%emt
00:00:37]} 12. Nd5 {[%clk 01:21:38]} {[%emt 00:07:16]} Bxd5 {[%clk 01:31:06]}
{[%emt 00:01:31]} 13. cxd5 {[%clk 01:21:53]} {[%emt 00:00:15]} Ne7 {[%clk
01:30:09]} {[%emt 00:01:27]} 14. Be3 {[%clk 01:21:04]} {[%emt 00:01:19]} Nd7
{[%clk 01:26:32]} {[%emt 00:04:07]} 15. a4 {[%clk 01:19:10]} {[%emt 00:02:23]}
a5 {[%clk 01:21:52]} {[%emt 00:05:10]} 16. Na3 {[%clk 01:17:54]} {[%emt
00:01:47]} f5 {[%clk 01:21:20]} {[%emt 00:01:01]} 17. f3 {[%clk 01:18:08]}
{[%emt 00:00:16]} f4 {[%clk 01:16:33]} {[%emt 00:05:17]} 18. Bf2 {[%clk
01:18:24]} {[%emt 00:00:14]} g5 {[%clk 01:13:07]} {[%emt 00:03:57]} 19. Nc4
{[%clk 01:16:43]} {[%emt 00:02:11]} Nf6 {[%clk 01:11:49]} {[%emt 00:01:46]} 20.
Bb6 {[%clk 01:15:33]} {[%emt 00:01:41]} Qd7 {[%clk 00:56:53]} {[%emt 00:15:26]}
21. Bxa5 {[%clk 01:14:48]} {[%emt 00:01:16]} Ra6 {[%clk 00:55:55]} {[%emt
00:01:28]} 22. b4 {[%clk 01:14:23]} {[%emt 00:00:55]} h5 {[%clk 00:53:05]}
{[%emt 00:03:20]} 23. Nb6 {[%clk 01:09:31]} {[%emt 00:05:22]} Qe8 {[%clk
00:52:23]} {[%emt 00:01:10]} 24. Bxa6 {[%clk 01:09:34]} {[%emt 00:00:28]} bxa6
{[%clk 00:52:50]} {[%emt 00:00:04]} 25. Nc4 {[%clk 01:05:28]} {[%emt 00:04:36]}
Nc8 {[%clk 00:50:46]} {[%emt 00:02:33]} 26. Rb1 {[%clk 01:03:34]} {[%emt
00:02:25]} g4 {[%clk 00:49:51]} {[%emt 00:01:24]} 27. b5 {[%clk 01:02:15]}
{[%emt 00:01:49]} Qg6 {[%clk 00:48:12]} {[%emt 00:02:09]} 28. b6 {[%clk
01:02:01]} {[%emt 00:00:44]} Nxb6 {[%emt 00:02:23]} 29. Rxb6 {[%clk 01:02:04]}
{[%emt 00:00:25]} 1-0

[Event "NJSK 2024 C"]
[Site "Groningen, Netherlands"]
[Date "2024.05.01"]
[Round "6.13"]
[White "Etienne, Ghilon"]
[Black "Stylianou, Alexandros"]
[Result "1-0"]
[TimeControl "90min/40moves + 30min + 30sec/move"]
[WhiteElo "1793"]
[BlackElo "1642"]

1. e4 {[%clk 01:30:57]} {[%emt 00:00:02]} c5 {[%clk 01:30:55]} {[%emt
00:00:06]} 2. Nf3 {[%clk 01:31:24]} {[%emt 00:00:03]} Nc6 {[%clk 01:31:18]}
{[%emt 00:00:06]} 3. d4 {[%clk 01:31:51]} {[%emt 00:00:04]} cxd4 {[%clk
01:31:40]} {[%emt 00:00:07]} 4. Nxd4 {[%clk 01:32:17]} {[%emt 00:00:04]} g6
{[%clk 01:32:02]} {[%emt 00:00:08]} 5. Be3 {[%clk 01:32:43]} {[%emt 00:00:05]}
Bg7 {[%clk 01:32:21]} {[%emt 00:00:10]} 6. Nc3 {[%clk 01:33:09]} {[%emt
00:00:05]} d6 {[%clk 01:32:36]} {[%emt 00:00:14]} 7. f3 {[%clk 01:33:25]}
{[%emt 00:00:14]} Bd7 {[%clk 01:32:25]} {[%emt 00:00:40]} 8. Qd2 {[%clk
01:33:50]} {[%emt 00:00:06]} Nf6 {[%clk 01:32:26]} {[%emt 00:00:29]} 9. O-O-O
{[%clk 01:34:10]} {[%emt 00:00:10]} O-O {[%clk 01:32:41]} {[%emt 00:00:15]} 10.
g4 {[%clk 01:34:37]} {[%emt 00:00:04]} a6 {[%clk 01:29:12]} {[%emt 00:03:59]}
11. h4 {[%clk 01:34:33]} {[%emt 00:00:34]} b5 {[%clk 01:20:48]} {[%emt
00:08:53]} 12. h5 {[%clk 01:34:43]} {[%emt 00:00:20]} Ne8 {[%clk 01:13:22]}
{[%emt 00:07:55]} 13. hxg6 {[%clk 01:32:09]} {[%emt 00:03:05]} fxg6 {[%clk
01:12:53]} {[%emt 00:00:59]} 14. Qh2 {[%clk 01:32:25]} {[%emt 00:00:14]} Nf6
{[%clk 01:12:33]} {[%emt 00:00:50]} 15. Nd5 {[%clk 01:31:19]} {[%emt 00:01:36]}
Kf7 {[%clk 01:10:51]} {[%emt 00:02:12]} 16. Nxf6 {[%clk 01:30:32]} {[%emt
00:01:18]} exf6 {[%clk 01:09:52]} {[%emt 00:01:28]} 17. Qxd6 {[%clk 01:30:51]}
{[%emt 00:00:11]} Rc8 {[%clk 00:58:42]} {[%emt 00:11:40]} 18. Qd5+ {[%clk
01:30:52]} {[%emt 00:00:29]} Ke8 {[%clk 00:57:35]} {[%emt 00:01:37]} 19. Nxc6
{[%clk 01:29:05]} {[%emt 00:02:18]} Bxc6 {[%clk 00:56:35]} {[%emt 00:01:29]} 20.
Qe6+ {[%clk 01:29:29]} {[%emt 00:00:06]} Qe7 {[%clk 00:56:05]} {[%emt
00:00:59]} 21. Qxc8+ {[%clk 01:29:55]} {[%emt 00:00:05]} Kf7 {[%clk 00:56:09]}
{[%emt 00:00:26]} 22. Qxc6 {[%clk 01:30:22]} {[%emt 00:00:04]} 1-0

[Event "NJSK 2024 C"]
[Site "Groningen, Netherlands"]
[Date "2024.05.01"]
[Round "7.1"]
[White "Groenewoud, Joel"]
[Black "Ritzerveld, Noah"]
[Result "1/2-1/2"]
[TimeControl "90min/40moves + 30min + 30sec/move"]
[WhiteElo "2030"]
[BlackElo "2103"]

1. e4 {[%clk 01:30:57]} {[%emt 00:00:03]} e5 {[%clk 01:30:54]} {[%emt
00:00:06]} 2. Nf3 {[%clk 01:31:23]} {[%emt 00:00:05]} Nc6 {[%clk 01:31:21]}
{[%emt 00:00:03]} 3. Bc4 {[%clk 01:31:41]} {[%emt 00:00:12]} Nf6 {[%clk
01:31:45]} {[%emt 00:00:04]} 4. Ng5 {[%clk 01:32:00]} {[%emt 00:00:13]} d5
{[%clk 01:32:08]} {[%emt 00:00:06]} 5. exd5 {[%clk 01:32:24]} {[%emt 00:00:07]}
Na5 {[%clk 01:32:33]} {[%emt 00:00:04]} 6. Bb5+ {[%clk 01:32:48]} {[%emt
00:00:07]} c6 {[%clk 01:32:53]} {[%emt 00:00:10]} 7. dxc6 {[%clk 01:33:15]}
{[%emt 00:00:04]} bxc6 {[%clk 01:33:18]} {[%emt 00:00:05]} 8. Be2 {[%clk
01:33:38]} {[%emt 00:00:07]} h6 {[%clk 01:33:43]} {[%emt 00:00:05]} 9. Nf3
{[%clk 01:34:04]} {[%emt 00:00:04]} e4 {[%clk 01:34:08]} {[%emt 00:00:05]} 10.
Ne5 {[%clk 01:34:32]} {[%emt 00:00:03]} Bc5 {[%clk 01:34:09]} {[%emt 00:00:28]}
11. c3 {[%clk 01:32:17]} {[%emt 00:02:45]} O-O {[%clk 01:33:54]} {[%emt
00:00:44]} 12. O-O {[%clk 01:32:16]} {[%emt 00:00:32]} Bd6 {[%clk 01:32:37]}
{[%emt 00:01:47]} 13. d4 {[%clk 01:31:11]} {[%emt 00:01:35]} exd3 {[%clk
01:31:33]} {[%emt 00:01:35]} 14. Nxd3 {[%clk 01:31:31]} {[%emt 00:00:10]} Bf5
{[%clk 01:29:31]} {[%emt 00:02:31]} 15. b3 {[%clk 01:24:34]} {[%emt 00:07:27]}
Re8 {[%clk 01:28:21]} {[%emt 00:01:39]} 16. Be3 {[%clk 01:18:31]} {[%emt
00:06:33]} Nd5 {[%clk 01:22:24]} {[%emt 00:06:28]} 17. Bd2 {[%clk 01:12:58]}
{[%emt 00:06:03]} Nb7 {[%clk 01:13:24]} {[%emt 00:09:30]} 18. Re1 {[%clk
01:06:25]} {[%emt 00:07:03]} Qf6 {[%clk 01:10:50]} {[%emt 00:03:04]} 19. Nb2
{[%clk 00:51:38]} {[%emt 00:15:17]} Rad8 {[%clk 01:00:47]} {[%emt 00:10:33]} 20.
Nc4 {[%clk 00:50:47]} {[%emt 00:01:20]} Bf4 {[%clk 00:52:37]} {[%emt 00:08:40]}
21. Bf3 {[%clk 00:41:54]} {[%emt 00:09:24]} Rxe1+ {[%clk 00:48:17]} {[%emt
00:04:50]} 22. Qxe1 {[%clk 00:41:58]} {[%emt 00:00:25]} Bxd2 {[%clk 00:44:21]}
{[%emt 00:04:27]} 23. Nbxd2 {[%clk 00:41:35]} {[%emt 00:00:53]} Nxc3 {[%clk
00:43:33]} {[%emt 00:01:18]} 24. Nf1 {[%clk 00:38:43]} {[%emt 00:03:22]} Be4
{[%clk 00:33:21]} {[%emt 00:10:41]} 25. Bxe4 {[%clk 00:33:39]} {[%emt
00:05:34]} Nxe4 {[%clk 00:33:45]} {[%emt 00:00:06]} 26. Rc1 {[%clk 00:33:16]}
{[%emt 00:00:54]} Nbc5 {[%clk 00:32:16]} {[%emt 00:01:59]} 27. Rc2 {[%clk
00:32:06]} {[%emt 00:01:40]} Qd4 {[%clk 00:27:25]} {[%emt 00:05:21]} 28. Qe3
{[%clk 00:30:36]} {[%emt 00:02:00]} Qd1 {[%clk 00:22:30]} {[%emt 00:05:25]} 29.
Rc1 {[%clk 00:29:47]} {[%emt 00:01:18]} Qd5 {[%clk 00:20:28]} {[%emt 00:02:32]}
30. f3 {[%clk 00:27:38]} {[%emt 00:02:39]} Ng5 {[%clk 00:20:13]} {[%emt
00:00:45]} 31. Ne5 {[%clk 00:25:12]} {[%emt 00:02:56]} Nge6 {[%clk 00:16:49]}
{[%emt 00:03:54]} 32. b4 {[%clk 00:24:24]} {[%emt 00:01:19]} Nd3 {[%clk
00:16:03]} {[%emt 00:01:16]} 33. Nxd3 {[%clk 00:23:55]} {[%emt 00:00:58]} Qxd3
{[%clk 00:16:23]} {[%emt 00:00:10]} 34. Qxd3 {[%clk 00:23:56]} {[%emt
00:00:29]} Rxd3 {[%clk 00:16:48]} {[%emt 00:00:06]} 35. Rxc6 {[%clk 00:23:32]}
{[%emt 00:00:54]} Ra3 {[%clk 00:16:58]} {[%emt 00:00:20]} 36. Rc2 {[%clk
00:23:15]} {[%emt 00:00:47]} Nd4 {[%clk 00:16:29]} {[%emt 00:00:58]} 37. Rd2
{[%clk 00:20:39]} {[%emt 00:03:06]} Nb5 {[%clk 00:14:56]} {[%emt 00:02:04]} 38.
Re2 {[%clk 00:19:44]} {[%emt 00:01:25]} Ra4 {[%clk 00:14:17]} {[%emt 00:01:08]}
39. Re8+ {[%clk 00:19:34]} {[%emt 00:00:40]} Kh7 {[%clk 00:14:35]} {[%emt
00:00:12]} 40. Rb8 {[%clk 00:19:44]} {[%emt 00:00:20]} Nc3 {[%clk 00:14:44]}
{[%emt 00:00:22]} 41. Ne3 {[%clk 00:17:40]} {[%emt 00:02:33]} 1/2-1/2

[Event "NJSK 2024 C"]
[Site "Groningen, Netherlands"]
[Date "2024.05.01"]
[Round "7.2"]
[White "Tetova, Amir"]
[Black "Kurt, Sascha"]
[Result "0-1"]
[TimeControl "90min/40moves + 30min + 30sec/move"]
[WhiteElo "1767"]
[BlackElo "2096"]

1. d4 {[%clk 01:30:59]} Nf6 {[%clk 01:30:51]} {[%emt 00:00:09]} 2. Bf4 {[%emt
00:00:10]} d5 {[%clk 01:31:11]} {[%emt 00:00:08]} 3. Nf3 {[%clk 01:31:46]}
{[%emt 00:00:05]} c5 {[%clk 01:31:35]} {[%emt 00:00:07]} 4. c3 {[%clk
01:32:12]} {[%emt 00:00:04]} Nc6 {[%clk 01:31:59]} {[%emt 00:00:06]} 5. e3
{[%clk 01:32:38]} {[%emt 00:00:04]} Qb6 {[%clk 01:32:26]} {[%emt 00:00:03]} 6.
Qb3 {[%clk 01:33:03]} {[%emt 00:00:06]} c4 {[%clk 01:32:51]} {[%emt 00:00:04]}
7. Qxb6 {[%clk 01:33:29]} {[%emt 00:00:04]} axb6 {[%clk 01:33:19]} {[%emt
00:00:02]} 8. Na3 {[%clk 01:33:50]} {[%emt 00:00:09]} Bf5 {[%clk 01:33:29]}
{[%emt 00:00:20]} 9. Nb5 {[%clk 01:33:18]} {[%emt 00:01:02]} Ra5 {[%clk
01:32:45]} {[%emt 00:01:13]} 10. Nc7+ {[%clk 01:31:19]} {[%emt 00:02:30]} Kd7
{[%clk 01:32:59]} {[%emt 00:00:15]} 11. Ne5+ {[%clk 01:30:59]} {[%emt
00:00:50]} Nxe5 {[%clk 01:33:17]} {[%emt 00:00:12]} 12. dxe5 {[%clk 01:22:35]}
{[%emt 00:08:54]} Nh5 {[%clk 01:32:55]} {[%emt 00:00:52]} 13. e6+ {[%clk
01:23:02]} {[%emt 00:00:04]} Bxe6 {[%clk 01:32:48]} {[%emt 00:00:37]} 14. Nxe6
{[%clk 01:23:15]} {[%emt 00:00:16]} Kxe6 {[%clk 01:33:03]} {[%emt 00:00:15]} 15.
Bc7 {[%clk 01:23:15]} {[%emt 00:00:31]} Ra6 {[%clk 01:33:00]} {[%emt 00:00:33]}
16. e4 {[%clk 01:22:44]} {[%emt 00:01:01]} Kd7 {[%clk 01:33:12]} {[%emt
00:00:16]} 17. Bg3 {[%clk 01:21:12]} {[%emt 00:02:04]} Nxg3 {[%clk 01:33:23]}
{[%emt 00:00:19]} 18. hxg3 {[%clk 01:21:34]} {[%emt 00:00:07]} e6 {[%clk
01:33:01]} {[%emt 00:00:52]} 19. exd5 {[%clk 01:21:44]} {[%emt 00:00:20]} exd5
{[%clk 01:33:30]} {[%emt 00:00:02]} 20. a3 {[%clk 01:22:06]} {[%emt 00:00:08]}
b5 {[%clk 01:33:31]} {[%emt 00:00:29]} 21. Rd1 {[%clk 01:22:31]} {[%emt
00:00:05]} Re6+ {[%clk 01:33:40]} {[%emt 00:00:20]} 22. Be2 {[%clk 01:22:37]}
{[%emt 00:00:25]} Kc6 {[%clk 01:31:45]} {[%emt 00:02:23]} 23. Rh5 {[%clk
01:22:35]} {[%emt 00:00:33]} Bc5 {[%clk 01:31:56]} {[%emt 00:00:19]} 24. Rdxd5
{[%clk 01:20:09]} {[%emt 00:02:57]} b6 {[%clk 01:32:06]} {[%emt 00:00:20]} 25.
Rde5 {[%clk 01:19:29]} {[%emt 00:01:10]} Rxe5 {[%clk 01:31:26]} {[%emt
00:01:09]} 26. Rxe5 {[%clk 01:19:53]} {[%emt 00:00:07]} Kd6 {[%clk 01:31:41]}
{[%emt 00:00:14]} 27. Rf5 {[%clk 01:17:50]} {[%emt 00:02:32]} f6 {[%clk
01:31:57]} {[%emt 00:00:15]} 28. Bf3 {[%clk 01:16:30]} {[%emt 00:01:50]} Re8+
{[%clk 01:32:18]} {[%emt 00:00:07]} 29. Kf1 {[%clk 01:16:57]} {[%emt 00:00:04]}
Kc7 {[%clk 01:30:44]} {[%emt 00:02:04]} 30. Rd5 {[%clk 01:17:05]} {[%emt
00:00:22]} g6 {[%clk 01:30:19]} {[%emt 00:00:55]} 31. Bg4 {[%clk 01:16:08]}
{[%emt 00:01:27]} Re7 {[%clk 01:30:09]} {[%emt 00:00:40]} 32. Bf3 {[%clk
01:15:39]} {[%emt 00:00:59]} h5 {[%clk 01:29:01]} {[%emt 00:01:38]} 33. Be2
{[%clk 01:14:43]} {[%emt 00:01:26]} Rh7 {[%clk 01:28:11]} {[%emt 00:01:20]} 34.
Bf3 {[%clk 01:12:36]} {[%emt 00:02:38]} h4 {[%clk 01:26:48]} {[%emt 00:01:52]}
35. gxh4 {[%clk 01:11:55]} {[%emt 00:01:11]} Rxh4 {[%clk 01:27:11]} {[%emt
00:00:07]} 36. g3 {[%clk 01:12:18]} {[%emt 00:00:07]} Rh2 {[%clk 01:27:19]}
{[%emt 00:00:23]} 37. Rd2 {[%clk 01:12:44]} {[%emt 00:00:04]} Bd6 {[%clk
01:26:22]} {[%emt 00:01:27]} 38. Re2 {[%clk 01:11:35]} {[%emt 00:01:38]} Be5
{[%clk 01:24:59]} {[%emt 00:01:52]} 39. Kg1 {[%clk 01:11:52]} {[%emt 00:00:14]}
Rh8 {[%clk 01:25:15]} {[%emt 00:00:14]} 40. Be4 {[%clk 01:09:41]} {[%emt
00:02:41]} g5 {[%clk 01:25:18]} {[%emt 00:00:27]} 41. Bc2 {[%clk 01:09:31]}
{[%emt 00:00:40]} Ra8 {[%clk 01:24:49]} {[%emt 00:00:59]} 42. Kg2 {[%clk
01:09:09]} {[%emt 00:00:52]} Ra7 {[%clk 01:24:11]} {[%emt 00:01:07]} 43. Rd2
{[%clk 01:08:22]} {[%emt 00:01:16]} Bxc3 {[%clk 01:16:18]} {[%emt 00:08:24]} 44.
bxc3 {[%clk 01:08:20]} {[%emt 00:00:32]} Rxa3 {[%clk 01:16:40]} {[%emt
00:00:08]} 45. Be4 {[%clk 01:01:04]} {[%emt 00:07:46]} Rxc3 {[%clk 01:16:15]}
{[%emt 00:00:55]} 46. Rb2 {[%clk 01:00:38]} {[%emt 00:00:56]} Kd6 {[%clk
01:03:45]} {[%emt 00:12:59]} 47. Rxb5 {[%clk 01:00:42]} {[%emt 00:00:27]} Rb3
{[%clk 01:04:08]} {[%emt 00:00:07]} 48. Rd5+ {[%clk 00:59:53]} {[%emt
00:01:20]} Ke6 {[%clk 01:03:04]} {[%emt 00:01:33]} 49. Rd8 {[%clk 00:46:36]}
{[%emt 00:13:48]} b5 {[%clk 01:01:52]} {[%emt 00:01:42]} 50. Kf1 {[%clk
00:42:50]} {[%emt 00:04:15]} Rb2 {[%clk 01:01:20]} {[%emt 00:01:02]} 51. Bc6
{[%clk 00:40:17]} {[%emt 00:03:03]} c3 {[%clk 01:00:22]} {[%emt 00:01:27]} 52.
Rc8 {[%clk 00:38:02]} {[%emt 00:02:46]} c2 {[%clk 00:59:09]} {[%emt 00:01:44]}
53. Bxb5 {[%clk 00:38:29]} {[%emt 00:00:03]} Rb1+ {[%clk 00:59:32]} {[%emt
00:00:06]} 54. Kg2 {[%clk 00:38:54]} {[%emt 00:00:05]} c1=Q {[%clk 00:59:54]}
{[%emt 00:00:08]} 55. Rxc1 {[%clk 00:39:22]} {[%emt 00:00:02]} Rxc1 {[%clk
01:00:13]} {[%emt 00:00:11]} 56. Be2 {[%clk 00:39:32]} {[%emt 00:00:19]} Ke5
{[%clk 01:00:33]} {[%emt 00:00:11]} 57. f3 {[%clk 00:38:19]} {[%emt 00:01:43]}
Rc2 {[%clk 01:00:17]} {[%emt 00:00:46]} 58. Kf2 {[%clk 00:37:45]} {[%emt
00:01:04]} Kd4 {[%clk 00:59:58]} {[%emt 00:00:49]} 59. f4 {[%clk 00:34:36]}
{[%emt 00:03:38]} gxf4 {[%clk 00:59:46]} {[%emt 00:00:43]} 60. gxf4 {[%clk
00:34:29]} {[%emt 00:00:37]} f5 {[%clk 00:58:51]} {[%emt 00:01:25]} 61. Kf3
{[%clk 00:32:22]} {[%emt 00:02:37]} Rc3+ {[%clk 00:59:16]} {[%emt 00:00:05]} 62.
Kg2 {[%clk 00:31:50]} {[%emt 00:01:02]} Ke3 {[%clk 00:59:30]} {[%emt 00:00:16]}
63. Bh5 {[%clk 00:31:21]} {[%emt 00:00:59]} Kxf4 {[%clk 00:59:55]} {[%emt
00:00:06]} 64. Kh2 {[%clk 00:31:13]} {[%emt 00:00:36]} Rg3 {[%clk 01:00:01]}
{[%emt 00:00:23]} 65. Bd1 {[%clk 00:31:12]} {[%emt 00:00:32]} Rg7 {[%clk
01:00:19]} {[%emt 00:00:13]} 66. Kh3 {[%clk 00:31:33]} {[%emt 00:00:09]} Ke3
{[%clk 01:00:43]} {[%emt 00:00:06]} 67. Ba4 {[%clk 00:31:08]} {[%emt 00:00:55]}
f4 {[%clk 01:01:03]} {[%emt 00:00:09]} 68. Bb5 {[%clk 00:31:31]} {[%emt
00:00:07]} f3 {[%clk 01:01:26]} {[%emt 00:00:07]} 69. Bf1 {[%clk 00:31:56]}
{[%emt 00:00:05]} f2 {[%clk 01:01:51]} {[%emt 00:00:05]} 70. Bc4 {[%clk
00:32:20]} {[%emt 00:00:07]} Kd2 {[%clk 01:02:04]} {[%emt 00:00:17]} 0-1

[Event "NJSK 2024 C"]
[Site "Groningen, Netherlands"]
[Date "2024.05.01"]
[Round "7.3"]
[White "Chua, Ethan"]
[Black "Aravindhan, Achyuth"]
[Result "1-0"]
[TimeControl "90min/40moves + 30min + 30sec/move"]
[WhiteElo "2000"]
[BlackElo "2071"]

1. e4 {[%clk 01:30:29]} {[%emt 00:00:31]} c5 {[%clk 01:30:57]} {[%emt
00:00:04]} 2. Nf3 {[%clk 01:30:57]} {[%emt 00:00:02]} Nc6 {[%clk 01:31:18]}
{[%emt 00:00:09]} 3. d4 {[%clk 01:31:24]} {[%emt 00:00:03]} cxd4 {[%clk
01:31:44]} {[%emt 00:00:04]} 4. Nxd4 {[%clk 01:31:51]} {[%emt 00:00:02]} Nf6
{[%clk 01:32:08]} {[%emt 00:00:06]} 5. Nc3 {[%clk 01:32:18]} {[%emt 00:00:03]}
e5 {[%clk 01:32:34]} {[%emt 00:00:05]} 6. Ndb5 {[%clk 01:32:45]} {[%emt
00:00:03]} d6 {[%clk 01:32:59]} {[%emt 00:00:05]} 7. Bg5 {[%clk 01:33:08]}
{[%emt 00:00:07]} a6 {[%clk 01:33:25]} {[%emt 00:00:04]} 8. Na3 {[%clk
01:33:35]} {[%emt 00:00:03]} b5 {[%clk 01:33:51]} {[%emt 00:00:05]} 9. Bxf6
{[%clk 01:34:01]} {[%emt 00:00:03]} gxf6 {[%clk 01:34:13]} {[%emt 00:00:08]} 10.
Nd5 {[%clk 01:34:28]} {[%emt 00:00:03]} f5 {[%clk 01:34:32]} {[%emt 00:00:11]}
11. Bd3 {[%clk 01:34:54]} {[%emt 00:00:04]} Be6 {[%clk 01:34:51]} {[%emt
00:00:10]} 12. O-O {[%emt 00:00:31]} Bxd5 {[%clk 01:35:00]} {[%emt 00:00:01]}
13. exd5 {[%clk 01:35:40]} {[%emt 00:00:03]} Ne7 {[%clk 01:35:18]} {[%emt
00:00:12]} 14. Nxb5 {[%clk 01:35:57]} {[%emt 00:00:13]} Bg7 {[%clk 01:35:23]}
{[%emt 00:00:25]} 15. Nc3 {[%clk 01:36:19]} {[%emt 00:00:08]} O-O {[%clk
01:32:08]} {[%emt 00:03:45]} 16. Qe2 {[%clk 01:35:09]} {[%emt 00:01:40]} Qb6
{[%clk 01:21:50]} {[%emt 00:10:47]} 17. Rab1 {[%clk 01:30:10]} {[%emt
00:05:29]} f4 {[%clk 01:11:42]} {[%emt 00:10:39]} 18. b4 {[%clk 01:24:11]}
{[%emt 00:06:28]} f5 {[%clk 01:08:53]} {[%emt 00:03:20]} 19. Na4 {[%clk
01:23:55]} {[%emt 00:00:46]} Qa7 {[%clk 01:02:22]} {[%emt 00:07:01]} 20. c4
{[%clk 01:23:16]} {[%emt 00:01:08]} Ng6 {[%clk 00:55:19]} {[%emt 00:07:34]} 21.
c5 {[%clk 01:08:01]} {[%emt 00:15:45]} f3 {[%clk 00:53:26]} {[%emt 00:02:23]}
22. Qe3 {[%clk 01:07:41]} {[%emt 00:00:50]} fxg2 {[%clk 00:49:15]} {[%emt
00:04:41]} 23. Kxg2 {[%clk 01:03:41]} {[%emt 00:04:29]} f4 {[%clk 00:43:02]}
{[%emt 00:06:43]} 24. Qh3 {[%clk 01:02:33]} {[%emt 00:01:39]} Rf6 {[%clk
00:32:50]} {[%emt 00:10:42]} 25. f3 {[%clk 00:59:03]} {[%emt 00:04:00]} a5
{[%clk 00:27:37]} {[%emt 00:05:42]} 26. b5 {[%clk 00:57:00]} {[%emt 00:02:33]}
dxc5 {[%clk 00:23:01]} {[%emt 00:05:07]} 27. b6 {[%clk 00:57:08]} {[%emt
00:00:21]} Qe7 {[%clk 00:22:21]} {[%emt 00:01:10]} 28. b7 {[%clk 00:55:15]}
{[%emt 00:02:23]} Rb8 {[%clk 00:22:32]} {[%emt 00:00:19]} 29. Qc8+ {[%clk
00:55:26]} {[%emt 00:00:19]} Rf8 {[%clk 00:22:49]} {[%emt 00:00:13]} 30. Qe6+
{[%clk 00:55:40]} {[%emt 00:00:17]} Kh8 {[%clk 00:17:46]} {[%emt 00:05:33]} 31.
Qxe7 {[%clk 00:55:21]} {[%emt 00:00:48]} Nxe7 {[%clk 00:18:11]} {[%emt
00:00:06]} 32. Be4 {[%clk 00:54:39]} {[%emt 00:01:12]} Rfd8 {[%clk 00:17:10]}
{[%emt 00:01:31]} 33. Nxc5 {[%clk 00:54:35]} {[%emt 00:00:34]} Nxd5 {[%clk
00:17:33]} {[%emt 00:00:07]} 34. Bxd5 {[%clk 00:54:53]} {[%emt 00:00:12]} Rxd5
{[%clk 00:17:56]} {[%emt 00:00:08]} 35. Na6 {[%clk 00:55:09]} {[%emt 00:00:12]}
Rdd8 {[%clk 00:18:15]} {[%emt 00:00:10]} 36. Nxb8 {[%clk 00:55:30]} {[%emt
00:00:11]} Rxb8 {[%clk 00:18:41]} {[%emt 00:00:04]} 37. Rfc1 {[%clk 00:55:56]}
{[%emt 00:00:04]} 1-0